[Event "Championnat d'Europe de Blitz"]
[Date "2024.12.09"]
[White "Suljovic, Sulejman"]
[Black "Gatineau, Yovann"]
[WhiteElo "2182"]
[BlackElo "2363"]
[Round "13.48"]
[Result "1/2-1/2"]
[TimeControl "180+2"]

1. e4 {[%clk 00:03:03]} e6 {[%clk 00:03:03]} 2. d4 {[%clk 00:03:04]} d5 {[%emt
00:00:01] [%clk 00:03:05]} 3. Nc3 {[%clk 00:03:04]} Nf6 {[%emt 00:00:01] [%clk
00:03:06]} 4. Bd3 {[%emt 00:00:01] [%clk 00:03:05]} c5 {[%emt 00:00:02] [%clk
00:03:06]} 5. dxc5 {[%emt 00:00:02] [%clk 00:03:05]} Bxc5 {[%emt 00:00:03] [%clk
00:03:06]} 6. Bg5 {[%emt 00:00:02] [%clk 00:03:04]} h6 {[%emt 00:00:16] [%clk
00:02:52]} 7. Bh4 {[%emt 00:00:03] [%clk 00:03:01]} Nc6 {[%emt 00:00:19] [%clk
00:02:36]} 8. Qe2 {[%emt 00:00:27] [%clk 00:02:36]} d4 {[%emt 00:00:09] [%clk
00:02:30]} 9. Nd1 {[%emt 00:00:12] [%clk 00:02:26]} e5 {[%emt 00:00:05] [%clk
00:02:28]} 10. Nf3 {[%emt 00:00:06] [%clk 00:02:21]} g5 {[%emt 00:00:15] [%clk
00:02:15]} 11. Bg3 {[%emt 00:00:01] [%clk 00:02:22]} Bg4 {[%emt 00:00:02] [%clk
00:02:16]} 12. h4 {[%emt 00:00:20] [%clk 00:02:03]} gxh4 {[%emt 00:00:23] [%clk
00:01:55]} 13. Bxh4 {[%emt 00:00:03] [%clk 00:02:01]} Qd6 {[%emt 00:00:06] [%clk
00:01:52]} 14. a3 {[%emt 00:00:25] [%clk 00:01:39]} a5 {[%clk 00:01:53]} 15. Qd2
{[%emt 00:00:09] [%clk 00:01:32]} Nh5 {[%emt 00:00:07] [%clk 00:01:48]} 16. Nh2
{[%emt 00:00:09] [%clk 00:01:25]} Be6 {[%emt 00:00:14] [%clk 00:01:36]} 17. f3
{[%emt 00:00:17] [%clk 00:01:10]} Nf4 {[%emt 00:00:09] [%clk 00:01:29]} 18. g3
{[%emt 00:00:06] [%clk 00:01:06]} Ng6 {[%emt 00:00:03] [%clk 00:01:28]} 19. Bf6
{[%emt 00:00:01] [%clk 00:01:07]} Rh7 {[%emt 00:00:08] [%clk 00:01:22]} 20. Nf2
{[%emt 00:00:02] [%clk 00:01:07]} Kd7 {[%emt 00:00:26] [%clk 00:00:59]} 21. Nhg4
{[%clk 00:01:07]} h5 {[%emt 00:00:11] [%clk 00:00:51]} 22. Bg5 {[%emt 00:00:01]
[%clk 00:01:07]} Kc7 {[%emt 00:00:06] [%clk 00:00:48]} 23. Nf6 {[%clk 00:01:08]}
Rhh8 {[%emt 00:00:02] [%clk 00:00:49]} 24. Rxh5 {[%clk 00:01:09]} Rxh5 {[%emt
00:00:07] [%clk 00:00:44]} 25. Nxh5 {[%emt 00:00:02] [%clk 00:01:08]} Rh8 {[%emt
00:00:02] [%clk 00:00:45]} 26. g4 {[%emt 00:00:04] [%clk 00:01:06]} b6 {[%emt
00:00:05] [%clk 00:00:42]} 27. Bf6 {[%emt 00:00:02] [%clk 00:01:06]} Rb8 {[%emt
00:00:11] [%clk 00:00:32]} 28. Nh1 {[%emt 00:00:03] [%clk 00:01:05]} b5 {[%emt
00:00:03] [%clk 00:00:32]} 29. N1g3 {[%clk 00:01:05]} b4 {[%emt 00:00:06] [%clk
00:00:29]} 30. Nf5 {[%emt 00:00:08] [%clk 00:00:59]} Qd7 {[%emt 00:00:06] [%clk
00:00:24]} 31. Bg5 {[%emt 00:00:18] [%clk 00:00:43]} bxa3 {[%emt 00:00:15] [%clk
00:00:11]} 32. bxa3 {[%emt 00:00:01] [%clk 00:00:44]} Rb2 {[%emt 00:00:01] [%clk
00:00:12]} 33. Nf6 {[%emt 00:00:04] [%clk 00:00:41]} Qc8 {[%emt 00:00:02] [%clk
00:00:12]} 34. Nd5+ {[%emt 00:00:06] [%clk 00:00:38]} Bxd5 {[%emt 00:00:05]
[%clk 00:00:10]} 35. exd5 {[%clk 00:00:39]} Nb4 {[%emt 00:00:01] [%clk
00:00:11]} 36. d6+ {[%emt 00:00:05] [%clk 00:00:36]} Kb6 {[%emt 00:00:05] [%clk
00:00:09]} 37. Ne7 {[%emt 00:00:13] [%clk 00:00:24]} Qh8 {[%emt 00:00:02] [%clk
00:00:09]} 38. O-O-O {[%emt 00:00:16] [%clk 00:00:10]} Ra2 {[%emt 00:00:07]
[%clk 00:00:05]} 39. Nd5+ {[%emt 00:00:03] [%clk 00:00:08]} Nxd5 {[%emt
00:00:02] [%clk 00:00:05]} 40. Bc4 {[%clk 00:00:10]} Ra1+ {[%emt 00:00:03] [%clk
00:00:04]} 41. Kb2 {[%clk 00:00:11]} Rxd1 {[%emt 00:00:01] [%clk 00:00:05]} 42.
Qxd1 {[%clk 00:00:12]} Nc3 {[%emt 00:00:02] [%clk 00:00:05]} 43. Qd3 {[%clk
00:00:13]} Qb8 {[%emt 00:00:01] [%clk 00:00:06]} 44. d7 {[%emt 00:00:03] [%clk
00:00:12]} Kc6+ {[%clk 00:00:07]} 45. Bb3 {[%emt 00:00:02] [%clk 00:00:12]} Kxd7
{[%emt 00:00:03] [%clk 00:00:06]} 46. Qf5+ {[%clk 00:00:13]} Kc6 {[%emt
00:00:03]} 47. Qxf7 {[%emt 00:00:01] [%clk 00:00:14]} Nf8 {[%emt 00:00:03] [%clk
00:00:04]} 48. Qf6+ {[%emt 00:00:02] [%clk 00:00:14]} Kb5 {[%emt 00:00:01] [%clk
00:00:05]} 49. a4+ {[%emt 00:00:02] [%clk 00:00:15]} Nxa4+ {[%emt 00:00:02]
[%clk 00:00:05]} 50. Kc1 {[%emt 00:00:02] [%clk 00:00:15]} Nc3 {[%emt 00:00:01]
[%clk 00:00:05]} 51. Qf7 {[%emt 00:00:06] [%clk 00:00:11]} a4 {[%emt 00:00:02]
[%clk 00:00:05]} 52. Qc4+ {[%clk 00:00:12]} Kb6 {[%emt 00:00:02] [%clk
00:00:05]} 53. Bxa4 {[%emt 00:00:01] [%clk 00:00:13]} Nxa4 {[%emt 00:00:03]
[%clk 00:00:05]} 54. Qxa4 {[%emt 00:00:02]} Nd7 {[%emt 00:00:01] [%clk
00:00:04]} 55. Qxd7 {[%clk 00:00:14]} Qa8 {[%clk 00:00:06]} 56. Qd8+ {[%clk
00:00:15]} Qxd8 {[%emt 00:00:01] [%clk 00:00:07]} 57. Bxd8+ {[%emt 00:00:01]
[%clk 00:00:17]} Kc6 58. Bh4 {[%emt 00:00:02] [%clk 00:00:18]} Kd5 {[%emt
00:00:01] [%clk 00:00:09]} 59. Kd2 {[%clk 00:00:19]} e4 {[%clk 00:00:10]} 60.
fxe4+ {[%clk 00:00:20]} Kxe4 {[%emt 00:00:01] [%clk 00:00:12]} 61. Bg3 {[%clk
00:00:22]} Kf3 {[%emt 00:00:02] [%clk 00:00:12]} 62. Be5 {[%emt 00:00:03] [%clk
00:00:21]} Kxg4 {[%emt 00:00:01] [%clk 00:00:12]} 63. Kd3 {[%clk 00:00:22]} Kf5
{[%emt 00:00:02] [%clk 00:00:12]} 64. Bxd4 {[%clk 00:00:24]} Ba3 {[%clk
00:00:13]} 65. Kc4 {[%emt 00:00:01] [%clk 00:00:24]} Ke6 {[%clk 00:00:15]} 66.
Kb5 {[%clk 00:00:25]} Kd7 {[%emt 00:00:03] [%clk 00:00:15]} 67. c4 {[%emt
00:00:02] [%clk 00:00:25]} Kc8 68. Bc5 {[%emt 00:00:02]} Bxc5 {[%emt 00:00:01]
[%clk 00:00:14]} 69. Kxc5 {[%emt 00:00:02] [%clk 00:00:25]} Kc7 {[%emt 00:00:01]
[%clk 00:00:16]} 70. Kd5 {[%clk 00:00:26]} Kd7 {[%clk 00:00:17]} 71. c5 {[%emt
00:00:01] [%clk 00:00:27]} Kc7 {[%clk 00:00:19]} 1/2-1/2

[Site "Europe Echecs"]

[Event "Championnat d'Europe de Blitz"]
[Date "2024.12.09"]
[White "Promyshlyanskiy, Vitaliy"]
[Black "Kizov, Atanas"]
[WhiteElo "2279"]
[BlackElo "2396"]
[Round "13.49"]
[Result "0-1"]
[TimeControl "180+2"]

1. e4 {[%clk 00:03:03]} d6 {[%clk 00:03:03]} 2. Nc3 {[%emt 00:00:02] [%clk
00:03:03]} Nf6 {[%clk 00:03:04]} 3. d4 {[%emt 00:00:04] [%clk 00:03:02]} e5
{[%clk 00:03:05]} 4. Nge2 {[%emt 00:00:04] [%clk 00:02:59]} c6 {[%emt 00:00:04]
[%clk 00:03:03]} 5. h3 {[%emt 00:00:17] [%clk 00:02:44]} h5 {[%emt 00:00:01]
[%clk 00:03:04]} 6. g3 {[%emt 00:00:03] [%clk 00:02:43]} b5 {[%emt 00:00:06]
[%clk 00:03:00]} 7. Bg2 {[%emt 00:00:07] [%clk 00:02:38]} Nbd7 {[%emt 00:00:02]
[%clk 00:03:00]} 8. a3 {[%emt 00:00:08] [%clk 00:02:32]} Bb7 {[%emt 00:00:02]
[%clk 00:03:01]} 9. O-O {[%emt 00:00:13] [%clk 00:02:21]} a6 {[%emt 00:00:05]
[%clk 00:02:58]} 10. f4 {[%emt 00:00:05] [%clk 00:02:18]} Be7 {[%emt 00:00:04]
[%clk 00:02:56]} 11. Kh2 {[%emt 00:00:14] [%clk 00:02:06]} Qc7 {[%emt 00:00:09]
[%clk 00:02:48]} 12. Qe1 {[%emt 00:00:23] [%clk 00:01:45]} O-O {[%emt 00:00:07]
[%clk 00:02:43]} 13. dxe5 {[%emt 00:00:12] [%clk 00:01:36]} dxe5 {[%clk
00:02:44]} 14. Be3 {[%emt 00:00:11] [%clk 00:01:27]} Bc5 {[%emt 00:00:10] [%clk
00:02:35]} 15. Qf2 {[%emt 00:00:07] [%clk 00:01:22]} Bxe3 {[%emt 00:00:06] [%clk
00:02:31]} 16. Qxe3 {[%emt 00:00:02] [%clk 00:01:23]} Rfe8 {[%emt 00:00:01]
[%clk 00:02:31]} 17. f5 {[%emt 00:00:04] [%clk 00:01:21]} Rad8 {[%emt 00:00:18]
[%clk 00:02:14]} 18. Rad1 {[%emt 00:00:05] [%clk 00:01:19]} Qb6 {[%emt 00:00:24]
[%clk 00:01:52]} 19. Qg5 {[%emt 00:00:15] [%clk 00:01:07]} Nf8 {[%emt 00:00:01]
[%clk 00:01:52]} 20. Rd3 {[%emt 00:00:36] [%clk 00:00:34]} c5 {[%emt 00:00:13]
[%clk 00:01:42]} 21. Rfd1 {[%emt 00:00:02] [%clk 00:00:33]} c4 {[%emt 00:00:01]
[%clk 00:01:42]} 22. Rxd8 {[%clk 00:00:34]} Rxd8 {[%emt 00:00:01] [%clk
00:01:44]} 23. Rxd8 {[%emt 00:00:08] [%clk 00:00:27]} Qxd8 {[%emt 00:00:02]
[%clk 00:01:45]} 24. Qe3 {[%emt 00:00:08] [%clk 00:00:21]} Qc7 {[%emt 00:00:11]
[%clk 00:01:35]} 25. Bf3 {[%emt 00:00:03] [%clk 00:00:21]} N8d7 {[%emt 00:00:05]
[%clk 00:01:32]} 26. g4 {[%emt 00:00:01] [%clk 00:00:22]} hxg4 {[%emt 00:00:01]
[%clk 00:01:33]} 27. hxg4 {[%clk 00:00:23]} Qc5 {[%clk 00:01:34]} 28. Qg1 {[%emt
00:00:17] [%clk 00:00:09]} Qxg1+ {[%emt 00:00:08] [%clk 00:01:28]} 29. Kxg1
{[%emt 00:00:02] [%clk 00:00:09]} g5 {[%emt 00:00:12] [%clk 00:01:17]} 30. fxg6
{[%emt 00:00:05] [%clk 00:00:07]} fxg6 {[%clk 00:01:17]} 31. Kf2 {[%emt
00:00:03] [%clk 00:00:07]} Kf8 {[%emt 00:00:03] [%clk 00:01:16]} 32. Ke3 {[%emt
00:00:05] [%clk 00:00:05]} Nc5 {[%emt 00:00:12] [%clk 00:01:06]} 33. Ng1 {[%emt
00:00:02] [%clk 00:00:05]} Ne6 {[%emt 00:00:02] [%clk 00:01:06]} 34. Nge2 {[%emt
00:00:01] [%clk 00:00:05]} g5 {[%emt 00:00:10] [%clk 00:00:59]} 35. Ng3 {[%emt
00:00:02] [%clk 00:00:04]} Nd4 {[%emt 00:00:07] [%clk 00:00:54]} 36. Bd1 {[%clk
00:00:06]} Bc8 {[%emt 00:00:01] [%clk 00:00:55]} 37. Nf5 {[%emt 00:00:02] [%clk
00:00:05]} Bxf5 {[%clk 00:00:57]} 38. exf5 {[%emt 00:00:03] [%clk 00:00:04]} Ke7
{[%emt 00:00:03] [%clk 00:00:56]} 39. Ne4 {[%emt 00:00:05]} Nxe4 {[%emt
00:00:12] [%clk 00:00:44]} 40. Kxe4 {[%clk 00:00:00]} Kd6 {[%clk 00:00:44]} 41.
c3 {[%emt 00:00:02] [%clk 00:00:00]} Nc6 {[%emt 00:00:03] [%clk 00:00:44]} 42.
b3 {[%emt 00:00:02] [%clk 00:00:00]} Na5 {[%emt 00:00:03]} 43. b4 {[%emt
00:00:01]} Nc6 {[%clk 00:00:44]} 44. Bc2 {[%clk 00:00:00]} Ne7 {[%emt 00:00:02]}
45. f6 {[%emt 00:00:16]} 0-1

[Site "Europe Echecs"]

[Event "Championnat d'Europe de Blitz"]
[Date "2024.12.09"]
[White "Manea, Alexandru"]
[Black "Asllani, Muhamet"]
[WhiteElo "2272"]
[BlackElo "2112"]
[Round "13.50"]
[Result "0-1"]
[TimeControl "180+2"]

1. e4 {[%clk 00:03:02]} e5 {[%clk 00:03:03]} 2. Qh5 {[%emt 00:00:03] [%clk
00:03:01]} Nc6 {[%emt 00:00:07] [%clk 00:02:58]} 3. Bc4 {[%emt 00:00:03] [%clk
00:03:01]} Qf6 {[%clk 00:02:59]} 4. Nc3 {[%emt 00:00:06] [%clk 00:02:57]} Qg6
{[%emt 00:00:07] [%clk 00:02:54]} 5. Qxg6 {[%emt 00:00:07] [%clk 00:02:51]} hxg6
{[%emt 00:00:02] [%clk 00:02:54]} 6. Nb5 {[%emt 00:00:02] [%clk 00:02:50]} Bd6
{[%emt 00:00:19] [%clk 00:02:39]} 7. Nxd6+ {[%emt 00:00:02] [%clk 00:02:50]}
cxd6 {[%emt 00:00:02] [%clk 00:02:39]} 8. Ne2 {[%emt 00:00:09] [%clk 00:02:42]}
a6 {[%emt 00:00:06] [%clk 00:02:36]} 9. a4 {[%emt 00:00:03] [%clk 00:02:41]} Nf6
{[%emt 00:00:06] [%clk 00:02:32]} 10. d3 {[%emt 00:00:02] [%clk 00:02:41]} d5
{[%emt 00:00:03] [%clk 00:02:31]} 11. exd5 {[%emt 00:00:05] [%clk 00:02:38]} Nb4
{[%emt 00:00:01] [%clk 00:02:32]} 12. Bb3 {[%emt 00:00:07] [%clk 00:02:32]}
Nbxd5 {[%emt 00:00:03] [%clk 00:02:31]} 13. Bd2 {[%emt 00:00:03] [%clk
00:02:31]} d6 {[%emt 00:00:02] [%clk 00:02:32]} 14. h3 {[%emt 00:00:02] [%clk
00:02:31]} Be6 {[%emt 00:00:02] [%clk 00:02:32]} 15. a5 {[%emt 00:00:09] [%clk
00:02:24]} Rc8 {[%emt 00:00:02] [%clk 00:02:32]} 16. c4 {[%emt 00:00:19] [%clk
00:02:07]} Nc7 {[%emt 00:00:06] [%clk 00:02:27]} 17. O-O {[%emt 00:00:13] [%clk
00:01:56]} d5 {[%emt 00:00:05] [%clk 00:02:24]} 18. Rac1 {[%emt 00:00:04] [%clk
00:01:55]} dxc4 {[%emt 00:00:13] [%clk 00:02:13]} 19. dxc4 {[%emt 00:00:02]
[%clk 00:01:54]} Kf8 {[%emt 00:00:29] [%clk 00:01:46]} 20. Rfe1 {[%emt 00:00:12]
[%clk 00:01:45]} Kg8 {[%emt 00:00:03] [%clk 00:01:44]} 21. Nc3 {[%emt 00:00:22]
[%clk 00:01:26]} Nd7 {[%emt 00:00:03] [%clk 00:01:43]} 22. Ne4 {[%emt 00:00:04]
[%clk 00:01:24]} f6 {[%emt 00:00:15] [%clk 00:01:31]} 23. Bb4 {[%emt 00:00:08]
[%clk 00:01:17]} Rh4 {[%emt 00:00:02] [%clk 00:01:31]} 24. f3 {[%emt 00:00:04]
[%clk 00:01:15]} Ne8 {[%emt 00:00:19] [%clk 00:01:14]} 25. Red1 {[%emt 00:00:04]
[%clk 00:01:12]} Nb8 {[%emt 00:00:09] [%clk 00:01:07]} 26. Be1 {[%emt 00:00:08]
[%clk 00:01:06]} Rh5 {[%emt 00:00:07] [%clk 00:01:01]} 27. Ba4 {[%emt 00:00:09]
[%clk 00:01:00]} Nc6 {[%emt 00:00:35] [%clk 00:00:28]} 28. Nc5 {[%emt 00:00:04]
[%clk 00:00:58]} Bf7 {[%emt 00:00:03] [%clk 00:00:28]} 29. Nxb7 {[%emt 00:00:07]
[%clk 00:00:53]} Nd4 {[%emt 00:00:02] [%clk 00:00:28]} 30. Bxe8 {[%emt 00:00:27]
[%clk 00:00:28]} Rxe8 {[%emt 00:00:03] [%clk 00:00:27]} 31. Nd6 {[%emt 00:00:04]
[%clk 00:00:26]} Re6 {[%clk 00:00:28]} 32. Nxf7 {[%emt 00:00:04] [%clk
00:00:24]} Ne2+ {[%emt 00:00:04] [%clk 00:00:26]} 33. Kf1 {[%emt 00:00:03] [%clk
00:00:23]} Nxc1 {[%clk 00:00:27]} 34. Nd8 {[%emt 00:00:07] [%clk 00:00:18]} Re8
{[%emt 00:00:01] [%clk 00:00:28]} 35. c5 {[%clk 00:00:19]} e4 {[%emt 00:00:09]
[%clk 00:00:21]} 36. b4 {[%emt 00:00:04] [%clk 00:00:17]} Nd3 {[%emt 00:00:04]}
37. Nb7 {[%emt 00:00:07] [%clk 00:00:12]} Ne5 {[%emt 00:00:08]} 38. f4 {[%emt
00:00:03] [%clk 00:00:11]} Nd3 {[%emt 00:00:02] [%clk 00:00:13]} 39. b5 {[%emt
00:00:08] [%clk 00:00:06]} Nxc5 {[%emt 00:00:06] [%clk 00:00:08]} 40. Nxc5
{[%emt 00:00:01] [%clk 00:00:06]} Rxc5 {[%clk 00:00:10]} 41. b6 {[%clk
00:00:08]} Rb5 {[%emt 00:00:03] [%clk 00:00:09]} 42. Rd7 {[%emt 00:00:03] [%clk
00:00:06]} Rc8 {[%emt 00:00:02] [%clk 00:00:09]} 43. Re7 {[%emt 00:00:06] [%clk
00:00:03]} f5 {[%emt 00:00:02] [%clk 00:00:10]} 44. g4 {[%clk 00:00:04]} Rc1
{[%emt 00:00:04] [%clk 00:00:08]} 45. gxf5 {[%emt 00:00:02] [%clk 00:00:04]}
gxf5 {[%emt 00:00:02] [%clk 00:00:09]} 46. Re5 {[%emt 00:00:01] [%clk 00:00:04]}
Rbb1 {[%emt 00:00:02] [%clk 00:00:09]} 47. Rxf5 {[%clk 00:00:06]} Rxe1+ {[%clk
00:00:10]} 48. Kf2 {[%clk 00:00:07]} e3+ {[%clk 00:00:12]} 49. Kf3 {[%clk
00:00:09]} Rb3 {[%emt 00:00:02] [%clk 00:00:12]} 50. Re5 {[%emt 00:00:02] [%clk
00:00:09]} Ra1 {[%emt 00:00:03] [%clk 00:00:11]} 51. h4 {[%emt 00:00:03] [%clk
00:00:09]} Ra2 {[%emt 00:00:02] [%clk 00:00:11]} 52. Re8+ {[%emt 00:00:01] [%clk
00:00:09]} Kf7 {[%clk 00:00:12]} 53. Re4 {[%emt 00:00:02] [%clk 00:00:09]} e2+
{[%emt 00:00:02] [%clk 00:00:13]} 54. Kf2 {[%clk 00:00:10]} Rb1 {[%emt
00:00:09]} 0-1

[Site "Europe Echecs"]

[Event "Championnat d'Europe de Blitz"]
[Date "2024.12.09"]
[White "Bogoevski, Jani"]
[Black "Perunovic, Miodrag"]
[WhiteElo "2144"]
[BlackElo "2357"]
[Round "13.51"]
[Result "1-0"]
[TimeControl "180+2"]

1. d4 {[%clk 00:03:02]} Nf6 {[%clk 00:03:03]} 2. Bf4 {[%emt 00:00:02] [%clk
00:03:02]} e6 {[%emt 00:00:14] [%clk 00:02:51]} 3. e3 {[%emt 00:00:02] [%clk
00:03:02]} c5 {[%emt 00:00:04] [%clk 00:02:50]} 4. Nf3 {[%emt 00:00:06] [%clk
00:02:58]} Nc6 {[%emt 00:00:01] [%clk 00:02:50]} 5. c3 {[%emt 00:00:02] [%clk
00:02:58]} Nh5 {[%emt 00:00:03] [%clk 00:02:49]} 6. Bg5 {[%emt 00:00:12] [%clk
00:02:48]} Qb6 {[%emt 00:00:01] [%clk 00:02:50]} 7. Qb3 {[%emt 00:00:04] [%clk
00:02:46]} h6 {[%emt 00:00:01] [%clk 00:02:50]} 8. Bh4 {[%emt 00:00:06] [%clk
00:02:43]} g5 {[%emt 00:00:01] [%clk 00:02:51]} 9. Bg3 {[%emt 00:00:01] [%clk
00:02:44]} Nxg3 {[%emt 00:00:03] [%clk 00:02:49]} 10. hxg3 {[%emt 00:00:01]
[%clk 00:02:45]} Bg7 {[%emt 00:00:06] [%clk 00:02:46]} 11. Nbd2 {[%emt 00:00:02]
[%clk 00:02:45]} d5 {[%emt 00:00:02] [%clk 00:02:47]} 12. Be2 {[%emt 00:00:22]
[%clk 00:02:24]} Bd7 {[%emt 00:00:06] [%clk 00:02:42]} 13. O-O {[%emt 00:00:27]
[%clk 00:02:00]} g4 {[%emt 00:00:19] [%clk 00:02:25]} 14. Ne1 {[%emt 00:00:04]
[%clk 00:01:59]} h5 {[%emt 00:00:07] [%clk 00:02:19]} 15. Qxb6 {[%emt 00:00:05]
[%clk 00:01:56]} axb6 {[%emt 00:00:01] [%clk 00:02:20]} 16. Nd3 {[%emt 00:00:08]
[%clk 00:01:50]} c4 {[%emt 00:00:11] [%clk 00:02:11]} 17. Nf4 {[%emt 00:00:08]
[%clk 00:01:43]} b5 {[%emt 00:00:08] [%clk 00:02:07]} 18. a3 {[%emt 00:00:02]
[%clk 00:01:43]} f5 {[%emt 00:00:09] [%clk 00:01:59]} 19. f3 {[%emt 00:00:03]
[%clk 00:01:42]} Kd8 {[%emt 00:00:23] [%clk 00:01:38]} 20. Kf2 {[%emt 00:00:02]
[%clk 00:01:42]} Bf6 {[%emt 00:00:24] [%clk 00:01:17]} 21. Rh1 {[%emt 00:00:06]
[%clk 00:01:37]} h4 {[%clk 00:01:18]} 22. gxh4 {[%emt 00:00:06] [%clk 00:01:33]}
Rxh4 {[%emt 00:00:03] [%clk 00:01:17]} 23. Rxh4 {[%emt 00:00:12] [%clk
00:01:24]} Bxh4+ {[%emt 00:00:02] [%clk 00:01:17]} 24. g3 {[%clk 00:01:25]} gxf3
{[%emt 00:00:03] [%clk 00:01:16]} 25. Nxf3 {[%emt 00:00:08] [%clk 00:01:20]} Bf6
{[%emt 00:00:02] [%clk 00:01:15]} 26. Rh1 {[%emt 00:00:02] [%clk 00:01:19]} Ne7
{[%emt 00:00:34] [%clk 00:00:44]} 27. Rh6 {[%emt 00:00:04] [%clk 00:01:17]} Ng8
{[%emt 00:00:05] [%clk 00:00:41]} 28. Rh7 {[%emt 00:00:16] [%clk 00:01:03]} Ra6
{[%emt 00:00:27] [%clk 00:00:16]} 29. Ng6 {[%emt 00:00:04] [%clk 00:01:01]} Be8
{[%emt 00:00:05] [%clk 00:00:13]} 30. Nge5 {[%emt 00:00:03] [%clk 00:01:00]} Ne7
{[%emt 00:00:04] [%clk 00:00:12]} 31. Rh6 {[%emt 00:00:04] [%clk 00:00:57]} Bg7
{[%emt 00:00:04] [%clk 00:00:10]} 32. Rh7 {[%emt 00:00:04] [%clk 00:00:55]} Bf6
{[%emt 00:00:02] [%clk 00:00:10]} 33. g4 {[%emt 00:00:04] [%clk 00:00:53]} fxg4
{[%emt 00:00:03] [%clk 00:00:10]} 34. Nxg4 {[%emt 00:00:01] [%clk 00:00:53]} Ng8
{[%emt 00:00:04] [%clk 00:00:09]} 35. Nxf6 {[%emt 00:00:09] [%clk 00:00:45]}
Nxf6 {[%emt 00:00:01] [%clk 00:00:10]} 36. Ng5 {[%emt 00:00:03] [%clk 00:00:44]}
Bg6 {[%emt 00:00:07] [%clk 00:00:05]} 37. Rh6 {[%emt 00:00:03] [%clk 00:00:43]}
Ne4+ {[%emt 00:00:03] [%clk 00:00:04]} 38. Nxe4 {[%emt 00:00:03] [%clk
00:00:42]} Bxe4 {[%clk 00:00:06]} 39. Kg3 {[%emt 00:00:08] [%clk 00:00:36]} Rb6
{[%emt 00:00:03] [%clk 00:00:05]} 40. Kf4 {[%clk 00:00:36]} e5+ {[%emt 00:00:03]
[%clk 00:00:05]} 41. Kg5 {[%clk 00:00:37]} Rxh6 {[%emt 00:00:03] [%clk
00:00:04]} 42. Kxh6 {[%clk 00:00:38]} exd4 {[%emt 00:00:01] [%clk 00:00:05]} 43.
exd4 {[%emt 00:00:01] [%clk 00:00:39]} Ke7 {[%emt 00:00:01] [%clk 00:00:06]} 44.
Kg5 {[%clk 00:00:40]} Kd6 {[%emt 00:00:01] [%clk 00:00:07]} 45. Kf6 {[%emt
00:00:01] [%clk 00:00:41]} Bc2 {[%emt 00:00:04] [%clk 00:00:06]} 46. Bg4 {[%emt
00:00:02] [%clk 00:00:42]} b6 {[%clk 00:00:07]} 47. Bf5 {[%emt 00:00:07] [%clk
00:00:37]} Bd1 {[%emt 00:00:01] [%clk 00:00:08]} 48. Bg6 {[%clk 00:00:38]} Bb3
{[%emt 00:00:02] [%clk 00:00:08]} 49. Be8 {[%emt 00:00:01] [%clk 00:00:38]} Ba4
{[%emt 00:00:02] [%clk 00:00:09]} 50. Bf7 {[%emt 00:00:02] [%clk 00:00:37]} Bc2
{[%emt 00:00:02] [%clk 00:00:10]} 51. Bh5 {[%emt 00:00:08] [%clk 00:00:31]} Bb3
{[%emt 00:00:02] [%clk 00:00:09]} 52. Kf7 {[%emt 00:00:02] [%clk 00:00:31]} Bc2
{[%emt 00:00:06] [%clk 00:00:05]} 53. Bg4 {[%emt 00:00:01] [%clk 00:00:32]} Bb3
{[%emt 00:00:02] [%clk 00:00:06]} 54. Ke8 {[%emt 00:00:03] [%clk 00:00:31]} Bc2
{[%emt 00:00:03] [%clk 00:00:05]} 55. Kd8 {[%emt 00:00:02] [%clk 00:00:30]} Bb3
{[%emt 00:00:03] [%clk 00:00:04]} 56. Kc8 {[%emt 00:00:02] [%clk 00:00:31]} Ba4
{[%emt 00:00:03] [%clk 00:00:04]} 57. Kb7 {[%emt 00:00:01] [%clk 00:00:30]} 1-0

[Site "Europe Echecs"]